bitfinex/quotes_ETHUSD_20260102
["timestamp","ask_amount","ask_price","bid_price","bid_amount"]
[1767394134604,2.47612934,3138.4,3137.8,0.001]
[1767394136024,2.47612934,3138.2,3137.8,0.001]
[1767394137333,2.47612934,3138.9,3137.8,2.32387608]
[1767394137499,0.63152346,3138.8,3137.8,2.55646369]
[1767394137700,2.47612934,3139.2,3137.8,2.55646369]
[1767394137900,3.18559358,3139.2,3137.8,2.55646369]
[1767394138101,0.002,3139.3,3138.0,2.32287608]
[1767394139502,0.002,3139.3,3138.0,2.35474351]
[1767394139705,0.002,3139.3,3138.2,2.26664035]
[1767394140017,0.002,3139.3,3138.4,2.26664035]
[1767394142634,0.002,3139.3,3138.3,1.18265651]
[1767394142635,0.002,3139.3,3138.6,2.26664035]
[1767394148748,0.002,3139.3,3138.7,2.26664035]
[1767394151229,0.002,3139.3,3138.8,6.37186184]
[1767394151444,0.002,3139.3,3138.9,2.26664035]
[1767394151645,0.002,3139.3,3138.9,2.76542296]
[1767394154449,0.002,3139.3,3138.9,5.9511624]
[1767394154757,0.002,3139.3,3139.0,2.26664035]
[1767394157531,0.002,3139.3,3139.0,3.18571308]
[1767394157931,0.002,3139.3,3139.1,2.26664035]
[1767394158655,0.002,3139.3,3139.2,2.26664035]
[1767394161241,0.002,3139.3,3139.0,2.26664035]
[1767394163545,0.002,3139.3,3139.0,5.45231105]
[1767394164359,0.002,3139.3,3139.0,2.26664035]
[1767394164860,0.002,3139.3,3138.9,3.68456023]
[1767394165064,0.002,3139.3,3138.9,2.26664035]
[1767394165571,0.002,3139.3,3139.0,2.26664035]
[1767394170967,0.002,3139.3,3139.0,5.45236806]
[1767394171468,0.002,3139.3,3139.0,5.45236663]
[1767394172070,0.002,3139.3,3139.0,2.26664035]
[1767394172241,0.002,3139.3,3139.0,2.63638064]
[1767394172441,0.002,3139.3,3139.0,5.82209561]
[1767394172974,0.002,3139.3,3139.0,5.82210619]
[1767394173854,0.002,3139.3,3139.0,3.55546584]
[1767394174674,0.002,3139.3,3139.0,5.99829858]
[1767394174843,0.002,3139.3,3139.1,0.91841151]
[1767394176580,0.002,3139.3,3139.0,3.55546584]
[1767394178875,2.31747691,3139.3,3138.2,3.78]
[1767394179046,2.31747691,3139.3,3138.7,3.18598358]
[1767394179767,2.31747691,3139.3,3138.8,3.18592624]
[1767394184683,2.31747691,3139.3,3138.7,2.44283274]
[1767394186681,2.31747691,3139.3,3138.8,6.37186184]
[1767394186854,2.31747691,3139.3,3138.8,7.2533313]
[1767394198483,2.71747691,3139.3,3138.8,6.37186184]
[1767394198879,2.71747691,3139.3,3138.8,3.18593092]
[1767394199085,2.71747691,3139.3,3138.4,3.18630782]
[1767394199086,2.31547691,3139.2,3138.4,3.18630782]
[1767394199381,2.31547691,3139.2,3138.4,3.18629176]
[1767394199583,2.31547691,3139.2,3138.1,3.27883274]
[1767394199584,2.31547691,3139.2,3138.1,0.836]
[1767394199885,7.60886562,3139.3,3138.1,3.18662308]
[1767394199886,2.38805714,3139.0,3138.1,3.18662308]
[1767394200688,2.38805714,3138.8,3138.0,3.18774314]
[1767394204181,2.38805714,3138.7,3138.0,3.18774314]
[1767394205080,2.38805714,3138.7,3138.0,0.001]
[1767394206059,2.38805714,3138.6,3138.0,0.001]
[1767394206258,6.37212502,3138.7,3137.9,0.001]
[1767394206259,2.38805714,3138.4,3137.9,0.001]
[1767394206466,2.38805714,3138.4,3137.6,3.18709704]
[1767394206885,2.38805714,3138.2,3137.5,3.18720916]
[1767394207285,2.38805714,3138.1,3137.4,3.18835258]
[1767394208403,2.38805714,3138.1,3137.4,0.001]
[1767394208565,2.38805714,3137.9,3137.4,0.001]
[1767394209593,2.38805714,3137.8,3137.4,0.001]
[1767394211594,2.38805714,3137.6,3137.4,0.001]
[1767394211793,2.38805714,3137.6,3137.1,0.001]
[1767394212887,2.38805714,3137.6,3137.4,0.001]
[1767394213199,2.62686285,3137.5,3137.4,0.001]
[1767394214388,2.38805714,3137.8,3137.4,0.001]
[1767394214590,0.836,3137.9,3137.4,0.001]
[1767394214787,2.38805714,3137.8,3137.4,0.001]
[1767394215088,0.836,3138.0,3137.4,0.001]
[1767394215290,3.22405714,3138.0,3137.4,0.001]
[1767394215471,2.71046285,3137.9,3137.4,0.001]
[1767394218896,2.38805714,3137.8,3137.4,0.001]
[1767394223011,2.38805714,3137.7,3137.4,0.001]
[1767394224310,2.38805714,3137.7,3137.1,0.001]
[1767394226105,2.38805714,3137.6,3137.1,0.001]
[1767394228084,2.94556874,3137.6,3137.1,0.001]
[1767394228593,6.1327293,3137.6,3137.1,0.001]
[1767394230322,6.1327293,3137.6,3137.1,2.27103207]
[1767394230323,0.5575116,3137.6,3137.1,2.27103207]
[1767394230694,0.5575116,3137.6,3137.1,0.001]
[1767394231018,2.85904341,3137.6,3137.1,0.001]
[1767394233916,0.60461013,3137.5,3137.1,0.001]
[1767394234119,2.90614194,3137.5,3137.1,0.001]
[1767394234319,2.30153181,3137.4,3137.1,0.001]
[1767394234505,2.30153181,3137.3,3137.1,0.001]
[1767394235306,2.30153181,3137.3,3136.8,0.001]
[1767394235507,6.37470575,3137.4,3136.8,0.001]
[1767394235508,3.16915557,3137.2,3136.8,0.001]
[1767394236293,2.30153181,3137.6,3136.8,2.27103207]
[1767394236518,0.836,3137.5,3136.9,3.18786062]
[1767394236720,2.30153181,3137.6,3136.9,2.27003207]
[1767394236922,4.02305946,3137.7,3136.9,2.27003207]
[1767394237430,3.18719876,3137.6,3136.9,2.27003207]
[1767394237727,0.40231988,3137.5,3136.9,2.27003207]
[1767394239903,0.40231988,3137.5,3136.9,5.45788752]
[1767394240395,0.002,3137.8,3137.0,2.27003207]
[1767394240913,0.002,3137.8,3137.2,2.27003207]
[1767394242728,0.002,3137.8,3137.4,2.27003207]
[1767394243125,0.002,3137.8,3137.5,2.27003207]
[1767394243525,0.002,3137.8,3137.4,3.18726361]
[1767394246329,0.002,3137.8,3137.1,6.37531478]
[1767394246529,0.002,3137.8,3137.2,0.86453469]
[1767394248746,0.002,3137.8,3137.3,3.18745418]
[1767394250127,2.30353181,3137.8,3137.3,3.18745418]
[1767394252215,2.30353181,3137.8,3137.1,3.18763939]
[1767394253741,2.43759702,3137.7,3137.1,3.18763939]
[1767394254038,0.56265437,3137.6,3137.0,5.45776255]
[1767394257414,3.00025139,3137.6,3137.0,5.45772661]
[1767394258242,3.00025139,3137.6,3137.0,5.45872661]
[1767394259437,3.00025139,3137.6,3137.0,3.18869454]
[1767394259637,3.00025139,3137.6,3137.0,0.001]
[1767394259836,0.70233236,3137.5,3137.0,0.001]
[1767394260931,2.98137782,3137.5,3137.0,0.001]
[1767394261130,2.27904546,3137.5,3137.0,0.001]
[1767394261651,2.27904546,3137.4,3137.0,0.001]
[1767394267558,2.27904546,3137.3,3137.0,0.001]
[1767394268762,2.27904546,3137.2,3137.0,0.001]
[1767394270976,2.27904546,3137.1,3137.0,0.001]
[1767394271157,2.82570658,3137.1,3137.0,0.001]
[1767394273460,2.27904546,3137.1,3137.0,0.001]
[1767394276574,3.18746165,3137.3,3136.8,0.001]
[1767394276876,0.836,3137.2,3136.8,0.001]
[1767394277073,3.11504546,3137.2,3136.8,0.001]
[1767394277584,2.27904546,3137.1,3136.8,0.001]
[1767394277775,0.31150455,3137.0,3136.8,0.001]
[1767394278256,2.59055001,3137.0,3136.8,0.001]
[1767394278583,8.96614081,3137.0,3136.8,0.001]
[1767394279677,5.77834541,3137.0,3136.8,0.001]
[1767394281568,3.49929995,3137.0,3136.8,0.001]
[1767394281783,0.66869916,3136.9,3136.8,0.001]
[1767394283882,2.27904546,3137.7,3136.8,2.35917644]
[1767394284089,4.02501254,3137.8,3136.8,2.35917644]
[1767394284294,0.838,3137.8,3136.8,2.35917644]
[1767394284454,4.02499246,3137.8,3136.8,2.35917644]
[1767394284656,3.18708646,3137.7,3136.8,2.35917644]
[1767394285294,0.838,3137.8,3136.8,2.35917644]
[1767394285583,0.002,3137.8,3137.0,2.35817644]
[1767394287264,0.002,3137.8,3137.2,2.35817644]
[1767394288587,0.002,3137.8,3137.3,2.29024368]
[1767394289470,1e-08,3137.5,3137.3,2.30842801]
[1767394289687,1e-08,3137.5,3137.4,3.17678181]
[1767394290062,0.002,3137.8,3137.5,2.30842801]
[1767394290781,0.002,3137.8,3137.6,5.49557742]
[1767394291584,0.002,3137.8,3137.7,2.30842801]
[1767394291789,0.002,3138.4,3137.8,2.30842801]
[1767394291982,0.002,3138.8,3138.3,2.30842801]
[1767394293407,0.002,3138.8,3138.5,2.30842801]
[1767394295508,0.002,3138.8,3138.6,5.49456195]
[1767394295809,0.002,3138.8,3138.7,2.30842801]
[1767394296589,0.002,3139.1,3138.8,2.30842801]
[1767394298568,0.002,3139.1,3138.8,3.18593092]
[1767394302302,0.002,3139.1,3138.8,5.49435893]
[1767394302608,0.002,3139.1,3138.8,3.18593092]
[1767394303304,0.002,3139.1,3138.7,4.05405631]
[1767394303600,0.002,3139.1,3138.7,3.18598672]
[1767394305027,0.002,3139.1,3138.6,3.18612313]
[1767394305229,0.002,3139.1,3138.5,3.18623546]
[1767394305725,2.25245144,3139.1,3138.5,3.18623546]
[1767394305906,2.25245144,3139.1,3138.5,6.37247092]
[1767394306229,2.25245144,3139.1,3138.5,3.18623546]
[1767394307634,2.25245144,3139.1,3138.6,0.001]
[1767394311395,0.002,3139.1,3138.6,0.001]
[1767394312000,2.25245144,3139.1,3138.6,0.001]
[1767394312405,0.002,3139.1,3138.6,0.001]
[1767394313434,2.39481239,3139.1,3138.6,0.001]
[1767394313641,2.39281239,3138.9,3138.6,0.001]
[1767394318307,3.18767057,3139.1,3138.6,0.001]
[1767394318512,5.58048296,3139.1,3138.6,0.001]
[1767394321738,0.002,3139.1,3138.6,2.39918381]
[1767394324940,0.002,3139.1,3138.7,2.39818381]
[1767394343965,0.002,3139.1,3137.7,3.78]
[1767394343966,2.27371396,3139.1,3137.7,3.78]
[1767394344178,2.27371396,3139.1,3135.5,0.001]
[1767394344179,2.27171396,3137.1,3135.5,0.001]
[1767394344337,3.528,3135.8,3135.6,2.39854788]
[1767394344657,3.528,3135.8,3135.1,2.39818381]
[1767394345175,3.528,3135.8,3135.3,2.39818381]
[1767394345344,3.528,3135.8,3135.4,2.39918381]
[1767394352356,3.528,3135.8,3135.3,2.3208887]
[1767394354046,3.528,3135.7,3135.3,2.3208887]
[1767394356876,3.528,3135.7,3135.3,2.3218887]
[1767394358777,3.528,3135.5,3135.3,0.001]
[1767394359575,3.528,3135.4,3135.3,0.001]
[1767394359968,3.528,3135.4,3134.9,2.3208887]
[1767394360516,3.528,3135.4,3134.7,5.51093863]
[1767394360672,5.66172401,3135.4,3134.7,5.51093863]
[1767394360871,5.66172401,3135.4,3134.8,2.3208887]
[1767394361077,3.18942233,3135.4,3134.8,2.3208887]
[1767394361385,3.18931156,3135.5,3134.8,2.3208887]
[1767394361762,3.528,3135.4,3134.8,2.3208887]
[1767394363667,3.18941977,3135.4,3134.8,2.3208887]
[1767394363983,3.18941977,3135.4,3134.7,0.87012166]
[1767394364274,3.528,3135.1,3134.7,3.19101036]
[1767394364483,3.528,3135.1,3134.8,2.3208887]
[1767394364689,3.30930168,3135.6,3134.9,2.3208887]
[1767394365585,3.189284,3135.5,3134.9,2.3208887]
[1767394365750,6.49853444,3135.6,3134.9,2.3208887]
[1767394365951,6.49853444,3135.6,3134.9,3.19097874]
[1767394366181,2.47230168,3135.5,3134.6,0.001]
[1767394367083,2.47230168,3135.2,3134.1,3.1917022]
[1767394367288,2.47230168,3135.0,3134.1,3.1917022]
[1767394367591,2.47230168,3135.0,3134.2,0.31927022]
[1767394368091,2.47230168,3134.8,3134.2,0.31927022]
[1767394368582,2.47230168,3134.8,3134.2,3.50987544]
[1767394368751,2.47230168,3134.8,3134.2,0.31927022]
[1767394370266,2.47230168,3134.8,3134.2,3.50987046]
[1767394371477,2.47230168,3134.7,3134.2,0.31927022]
[1767394372762,2.47230168,3135.0,3134.2,3.50986519]
[1767394372961,3.8404788,3135.6,3134.4,2.3208887]
[1767394372962,0.837,3135.4,3134.4,2.3208887]
[1767394373267,2.47230168,3135.5,3134.3,0.58317539]
[1767394373268,2.47230168,3135.5,3134.6,2.3208887]
[1767394373468,3.30930168,3135.5,3134.6,2.3208887]
[1767394373876,2.47230168,3135.4,3134.6,2.3208887]
[1767394374788,6.50043177,3135.7,3134.8,2.3208887]
[1767394374975,2.47230168,3135.6,3134.8,3.19099716]
[1767394375886,2.47230168,3135.6,3134.9,5.51078311]
[1767394376768,2.47230168,3135.5,3134.9,5.51078311]
[1767394377275,2.47230168,3135.5,3134.8,3.18994622]
[1767394377670,2.47230168,3135.5,3134.3,2.90406409]
[1767394377987,2.47230168,3135.3,3134.5,3.19030148]
[1767394378590,2.47230168,3135.3,3134.5,6.38060296]
[1767394379175,2.47230168,3135.3,3134.8,0.001]
[1767394380193,2.35354811,3135.6,3134.8,2.31414861]
[1767394380497,5.54273208,3135.6,3134.8,2.31414861]
[1767394380676,5.54273208,3135.6,3134.8,2.54556347]
[1767394381702,2.35354811,3135.5,3134.9,3.18989441]
[1767394382398,5.54462869,3135.7,3134.9,5.50304302]
[1767394383049,2.35354811,3135.6,3134.9,5.50304302]
[1767394385870,2.35354811,3135.6,3135.0,5.50291235]
[1767394386095,2.35554811,3135.6,3135.0,5.50291235]
[1767394391874,0.002,3135.6,3135.1,2.31314861]
[1767394392297,0.002,3135.6,3135.1,5.5027518]
[1767394393809,0.002,3135.6,3135.0,3.7632726]
[1767394394110,0.002,3135.6,3135.0,3.18973988]
[1767394394683,0.002,3135.6,3135.1,2.31314861]
[1767394395194,2.35554811,3135.6,3135.0,3.18973988]
[1767394395391,0.002,3135.6,3135.1,2.31314861]
[1767394396811,0.002,3135.6,3135.0,3.18973988]
[1767394398542,0.002,3135.6,3134.9,5.50302217]
[1767394398744,0.002,3135.6,3135.0,3.18979266]
[1767394399114,0.002,3135.6,3135.0,5.50294127]
[1767394402347,2.35554811,3135.6,3135.0,5.50294127]
[1767394404249,0.002,3135.6,3135.0,5.50294127]
[1767394404612,0.002,3135.6,3135.1,2.31314861]
[1767394405638,0.002,3135.6,3135.1,5.50283498]
[1767394405830,2.35554811,3135.6,3135.1,3.18968637]
[1767394407748,0.002,3135.6,3135.0,2.49493427]
[1767394408325,0.002,3135.7,3135.0,2.49493427]
[1767394408326,2.41138309,3136.2,3135.5,2.49493427]
[1767394408527,2.41138309,3136.4,3135.5,2.49493427]
[1767394408949,7.04010426,3136.9,3135.5,2.49493427]
[1767394408950,2.41338309,3136.9,3135.5,2.49493427]
[1767394409244,5.84281284,3136.9,3135.7,2.49493427]
[1767394409456,2.26802175,3136.8,3135.9,2.41628824]
[1767394410259,2.26802175,3136.7,3135.9,3.18887719]
[1767394410436,2.26802175,3136.7,3136.0,2.41628824]
[1767394411952,3.18799568,3136.8,3136.0,2.41628824]
[1767394412152,2.26802175,3136.7,3136.0,0.87940426]
[1767394412353,2.26802175,3136.7,3136.0,4.06807837]
[1767394414163,2.26802175,3136.7,3136.0,6.48436661]
[1767394415150,2.27002175,3136.7,3136.0,5.60496235]
[1767394416774,0.002,3136.7,3136.1,2.41628824]
[1767394417498,0.002,3136.7,3136.3,2.41628824]
[1767394418388,2.22402175,3137.1,3136.3,2.41628824]
[1767394419579,2.26802175,3137.3,3136.5,2.41628824]
[1767394419780,2.26802175,3137.5,3136.6,2.41628824]
[1767394422386,3.18735258,3137.4,3136.7,5.60435212]
[1767394422561,5.45537433,3137.4,3136.7,5.60435212]
[1767394424593,2.26802175,3137.3,3136.5,3.29559083]
[1767394424770,2.26802175,3137.2,3136.5,2.41628824]
[1767394425665,2.26802175,3137.2,3136.3,0.837]
[1767394427594,2.26802175,3137.0,3136.3,0.837]
[1767394428282,2.26802175,3137.0,3136.2,3.18851939]
[1767394429698,2.26802175,3136.9,3136.1,5.60496207]
[1767394429878,2.26802175,3136.9,3136.1,6.56803428]
[1767394430083,2.26802175,3136.9,3136.1,9.75670811]
[1767394431276,2.26802175,3136.9,3136.1,6.56803428]
[1767394432174,2.26802175,3136.9,3136.1,9.75670811]
[1767394432609,2.26802175,3136.8,3135.8,2.41628824]
[1767394432781,2.26802175,3136.8,3136.0,3.18872699]
[1767394434189,2.26802175,3136.6,3136.0,3.18872699]
[1767394435305,2.26802175,3136.6,3135.9,0.837]
[1767394435306,2.26802175,3136.6,3135.9,4.02582545]
[1767394435507,2.26802175,3136.5,3135.6,0.001]
[1767394435703,2.81363031,3136.5,3135.6,0.001]
[1767394436489,6.37673766,3136.4,3135.6,0.001]
[1767394436704,2.26802175,3136.3,3135.6,0.001]
[1767394437508,2.26802175,3136.2,3135.6,0.001]
[1767394437805,2.26802175,3136.0,3135.6,0.001]
[1767394438600,5.45685915,3136.0,3135.6,0.001]
[1767394439000,2.26802175,3135.9,3135.6,0.001]
[1767394440286,3.1888374,3136.0,3135.6,0.001]
[1767394445011,6.26798287,3136.1,3135.6,0.001]
[1767394447216,3.80055116,3136.1,3135.6,2.32272469]
[1767394447409,3.1885855,3136.2,3135.6,2.32272469]
[1767394448717,3.18847049,3136.3,3135.6,2.32272469]
[1767394449220,3.18847049,3136.3,3135.6,5.51190617]
[1767394449723,3.18847049,3136.3,3135.6,2.32272469]
[1767394450022,0.96812916,3136.2,3135.6,2.32272469]
[1767394450818,0.96812916,3136.2,3135.6,5.51190677]
[1767394451722,4.15675889,3136.2,3135.6,2.32272469]
[1767394452022,5.65594047,3136.3,3135.6,5.5118879]
[1767394452722,5.65594047,3136.3,3135.7,2.32172469]
[1767394455323,5.65594047,3136.3,3135.6,3.19016321]
[1767394455529,6.20134748,3136.5,3135.8,2.32172469]
[1767394456409,6.20134748,3136.5,3135.8,5.51063358]
[1767394460342,0.002,3136.6,3135.9,2.32172469]
[1767394461303,0.002,3136.6,3136.1,2.32172469]
[1767394462199,0.002,3136.6,3136.3,2.32172469]
[1767394465028,0.002,3136.6,3136.5,2.32172469]
[1767394465206,0.002,3136.6,3136.5,3.19157093]
[1767394468157,0.002,3136.6,3136.5,6.3798381]
[1767394475047,0.002,3136.6,3136.5,3.19157093]
[1767394476048,0.002,3136.6,3136.3,3.18842056]
[1767394476247,0.002,3136.6,3135.6,3.19014912]
[1767394476248,2.35472972,3136.6,3135.6,3.19014912]
[1767394476840,2.35472972,3136.6,3135.6,2.27944995]
[1767394477043,2.35472972,3136.6,3136.0,0.001]
[1767394477241,2.35272972,3136.4,3136.0,0.001]
[1767394478156,3.42381877,3136.5,3136.0,0.001]
[1767394478445,5.77654849,3136.5,3136.0,0.001]
[1767394478652,2.35272972,3136.4,3136.0,0.001]
[1767394484146,5.54112145,3136.4,3136.0,0.001]
[1767394484445,6.43779779,3136.4,3136.0,0.001]
[1767394493133,2.35472972,3136.6,3136.0,2.27944995]
[1767394493339,3.1902029,3136.6,3136.0,2.27944995]
[1767394493645,5.54293262,3136.6,3136.0,2.27944995]
[1767394493858,5.54293262,3136.6,3136.0,0.001]
[1767394494055,2.35272972,3136.5,3136.0,0.001]
[1767394494838,5.54105607,3136.5,3136.0,0.001]
[1767394496564,3.19021956,3136.6,3136.0,2.27944995]
[1767394498141,8.73116884,3136.6,3136.0,2.27944995]
[1767394498689,8.73116884,3136.6,3136.0,0.001]
[1767394498889,9.68798572,3136.6,3136.0,0.001]
[1767394499382,6.49976616,3136.6,3136.0,0.001]
[1767394500163,9.68798572,3136.6,3136.0,0.001]
[1767394500947,2.29869242,3136.5,3136.0,0.001]
[1767394501350,8.67543008,3136.4,3136.0,0.001]
[1767394501650,2.29869242,3136.3,3136.0,0.001]
[1767394503877,3.18857215,3136.2,3136.0,0.001]
[1767394504461,5.48721654,3136.3,3136.0,0.001]
[1767394505066,2.29869242,3136.2,3136.0,0.001]
[1767394506162,5.48728266,3136.2,3136.0,0.001]
[1767394509606,3.18826717,3136.5,3136.0,0.001]
[1767394509754,3.2575093,3136.6,3136.0,0.001]
[1767394509755,6.44570996,3136.6,3136.0,0.001]
[1767394509957,0.9633802,3136.5,3136.0,0.001]
[1767394510557,0.002,3136.6,3136.0,2.49527383]
[1767394510765,3.19019381,3136.6,3136.0,2.49527383]
[1767394511377,0.002,3136.6,3136.0,2.49527383]
[1767394511885,2.30069242,3136.6,3136.0,0.001]
[1767394513391,5.48695959,3136.5,3136.0,0.001]
[1767394513586,0.54889596,3136.4,3136.0,0.001]
[1767394516189,3.73731065,3136.4,3136.0,0.001]
[1767394517390,3.18841469,3136.4,3136.0,0.001]
[1767394517789,5.48710711,3136.4,3136.0,0.001]
[1767394527493,3.18841469,3136.4,3136.0,0.001]
[1767394529300,5.61093284,3136.5,3136.0,0.001]
[1767394529811,3.18826717,3136.5,3136.0,2.49194315]
[1767394530014,0.002,3136.6,3136.0,2.49194315]
[1767394530320,3.19018428,3136.6,3136.0,2.49194315]
[1767394531482,0.002,3136.6,3136.0,2.49194315]
[1767394531793,0.002,3136.6,3136.1,2.49094315]
[1767394536999,3.18826717,3136.5,3136.0,0.001]
[1767394542526,5.43864979,3136.5,3136.0,0.001]
[1767394543724,0.002,3136.6,3136.0,2.49194315]
[1767394545726,2.25238262,3136.6,3136.0,0.001]
[1767394546531,2.25238262,3136.6,3136.0,2.49194315]
[1767394547028,5.44057786,3136.6,3136.0,2.49194315]
[1767394548029,3.19019524,3136.6,3136.0,2.49194315]
[1767394548323,5.44057786,3136.6,3136.0,2.49194315]
[1767394549213,6.3034351,3136.6,3136.0,2.4907439]
[1767394549609,2.25038262,3136.5,3135.9,3.18886601]
[1767394549917,2.25038262,3136.5,3135.8,5.67988705]
[1767394550930,2.25038262,3136.5,3135.8,3.1889439]
[1767394551130,5.43872791,3136.5,3135.6,6.37932909]
[1767394551438,2.25038262,3136.4,3135.7,2.49094315]
[1767394551603,2.25038262,3136.4,3135.6,0.001]
[1767394553503,2.25038262,3136.1,3135.6,0.001]
[1767394556131,5.43913876,3136.1,3135.6,0.001]
[1767394557308,6.30191005,3136.1,3135.6,0.001]
[1767394559563,3.11315391,3136.1,3135.6,0.001]
[1767394560416,0.86277129,3136.1,3135.6,2.30378648]
[1767394560616,6.5143163,3136.6,3135.6,2.30378648]
[1767394560817,3.32609936,3136.6,3135.6,2.30378648]
[1767394561338,0.839,3136.6,3135.6,2.30378648]
[1767394561511,4.02717213,3136.6,3135.6,2.30378648]
[1767394561711,0.78747643,3136.5,3135.8,2.30278648]
[1767394563110,0.002,3136.6,3135.8,2.30278648]
[1767394563636,0.002,3136.6,3135.7,6.37816116]
[1767394563637,0.002,3136.6,3136.0,2.30278648]
[1767394566045,0.002,3137.9,3136.8,2.30278648]
[1767394566338,0.002,3137.9,3136.5,3.84759216]
[1767394566339,0.002,3138.0,3137.7,2.123315]
[1767394568270,0.002,3138.0,3137.8,2.30278648]
[1767394571367,0.002,3138.0,3137.8,5.4897103]
[1767394571569,0.002,3138.0,3137.8,6.35739605]
[1767394572654,0.002,3138.0,3137.8,3.17047223]
[1767394572855,0.002,3138.0,3137.8,0.86768575]
[1767394573161,0.002,3138.0,3137.7,3.18699002]
[1767394584080,0.002,3138.0,3137.7,3.1518794]
[1767394585173,2.48909936,3138.0,3137.6,0.001]
[1767394588877,2.33242628,3137.9,3137.6,0.001]
[1767394592259,0.002,3138.0,3137.6,2.2529052]
[1767394592953,0.002,3138.0,3137.6,5.44002463]
[1767394595587,0.002,3138.0,3137.8,2.2519052]
[1767394597679,0.002,3138.0,3137.6,3.11574195]
[1767394597880,0.002,3138.0,3137.6,2.2529052]
[1767394602994,0.002,3138.0,3137.6,5.44005146]
[1767394603195,0.002,3138.0,3137.7,2.2519052]
[1767394603496,0.002,3138.2,3137.7,2.2519052]
[1767394605707,0.002,3138.2,3137.7,5.43887538]
[1767394605893,0.002,3138.2,3137.8,3.11460736]
[1767394608418,0.002,3138.2,3137.6,3.1880836]
[1767394608585,0.002,3138.2,3137.6,4.0240836]
[1767394608902,0.002,3138.2,3137.0,3.18767718]
[1767394608903,2.31989174,3138.0,3137.0,2.2519052]
[1767394610715,2.31989174,3137.8,3137.0,2.2519052]
[1767394612013,2.31989174,3137.8,3137.1,2.2519052]
[1767394612516,2.31989174,3137.7,3136.9,2.2519052]
[1767394614403,2.31989174,3137.7,3137.0,2.2529052]
[1767394614619,3.18714941,3137.6,3137.0,2.2529052]
[1767394615344,2.31989174,3137.5,3137.0,0.001]
[1767394616920,5.50719758,3137.5,3137.0,0.001]
[1767394617792,4.02319841,3137.6,3137.0,2.2529052]
[1767394618086,6.34309015,3137.6,3137.0,2.2529052]
[1767394622124,9.53028856,3137.6,3137.0,2.2529052]
[1767394622921,6.34309015,3137.6,3137.0,2.2529052]
[1767394623925,2.32121867,3137.5,3137.0,0.001]
[1767394624114,5.50852235,3137.5,3137.0,0.001]
[1767394625120,2.32121867,3137.5,3137.0,0.001]
[1767394625423,4.02320306,3137.6,3137.0,0.001]
[1767394626326,2.32121867,3137.5,3137.0,0.001]
[1767394626621,7.38469781,3137.6,3137.0,0.001]
[1767394627821,10.57190505,3137.6,3137.0,0.001]
[1767394628304,2.32121867,3137.5,3137.0,0.001]
[1767394628894,2.32121867,3137.3,3137.0,0.001]
[1767394629094,3.19081105,3137.2,3137.0,0.001]
[1767394630224,3.15721867,3137.1,3136.5,2.42758382]
[1767394631126,3.15721867,3137.1,3137.0,0.001]
[1767394631626,3.15721867,3137.1,3136.4,0.001]
[1767394631627,2.32121867,3137.0,3136.4,0.001]
[1767394632438,5.50906763,3137.0,3136.4,0.001]
[1767394634523,5.50906763,3137.0,3136.4,2.42858382]
[1767394636212,3.18784896,3137.0,3136.4,2.42858382]
[1767394639031,5.50906763,3137.0,3136.4,2.42858382]
[1767394642541,8.69691659,3137.0,3136.4,2.42858382]
[1767394642741,5.50906763,3137.0,3136.4,2.42858382]
[1767394643811,8.69691659,3137.0,3136.4,2.42858382]
[1767394644038,2.32121867,3136.9,3136.4,0.001]
[1767394644428,2.32121867,3136.8,3136.4,0.001]
[1767394645132,3.18806388,3136.7,3136.4,0.001]
[1767394645336,5.50928255,3136.7,3136.4,0.001]
[1767394645868,8.69734643,3136.7,3136.4,0.001]
[1767394646044,5.50928255,3136.7,3136.4,0.001]
[1767394649952,8.69734643,3136.7,3136.4,0.001]
[1767394650121,0.836,3136.6,3136.4,0.001]
[1767394652333,3.18826717,3136.5,3136.4,0.001]
[1767394658965,4.02421074,3136.6,3136.4,0.001]
[1767394659166,2.45304646,3136.5,3135.8,4.09106674]
[1767394659343,2.45304646,3136.5,3135.9,0.65073476]
[1767394659643,2.45304646,3136.5,3135.9,3.06601567]
[1767394660359,5.64140483,3136.5,3135.9,3.06601567]
[1767394661730,5.64140483,3136.5,3135.9,6.25486671]
[1767394662160,5.64140483,3136.5,3135.9,3.06601567]
[1767394663830,8.8297632,3136.5,3135.9,0.001]
[1767394664040,2.45304646,3136.4,3135.9,0.001]
[1767394664835,2.45304646,3136.2,3135.9,0.001]
[1767394666765,3.18867383,3136.1,3135.9,0.001]
[1767394674545,2.45304646,3136.1,3135.9,0.001]
[1767394676770,5.64151695,3136.3,3135.9,0.001]
[1767394679270,6.52450651,3136.3,3135.9,0.001]
[1767394679676,0.837,3136.2,3135.9,0.001]
[1767394681382,2.45839143,3136.1,3135.9,0.001]
[1767394681788,2.45839143,3136.1,3135.6,0.001]
[1767394682751,7.21421202,3136.2,3135.6,0.001]
[1767394682952,0.80972016,3136.1,3135.6,0.001]
[1767394683664,3.18877551,3136.0,3135.6,0.001]
[1767394690788,5.64716694,3136.0,3135.6,0.001]
[1767394691961,2.45839143,3135.9,3135.6,0.001]
[1767394692164,2.45839143,3135.9,3135.0,0.001]
[1767394692488,2.45839143,3135.7,3135.0,0.001]
[1767394692685,0.837,3135.6,3135.0,0.001]
[1767394692893,6.48461112,3135.6,3135.0,0.001]
[1767394693967,2.45839143,3135.5,3135.0,0.001]
[1767394694795,6.37877144,3135.4,3135.0,0.001]
[1767394694997,9.80457916,3135.4,3135.0,0.001]
[1767394698194,2.45839143,3135.3,3135.0,0.001]
[1767394699179,3.18958918,3135.2,3135.0,0.001]
[1767394699379,5.64798061,3135.2,3135.0,0.001]
[1767394701299,2.45839143,3135.2,3134.7,0.001]
[1767394701594,2.45839143,3135.1,3134.7,0.001]
[1767394701790,3.29539143,3135.1,3134.7,0.001]
[1767394702020,0.837,3135.1,3134.7,0.001]
[1767394702197,2.45839143,3135.0,3134.5,0.001]
[1767394702405,2.78793057,3134.9,3134.5,0.001]